Cogmind - Beta 13 @@@ ROGUE MODE // 2024.04.15 @ 20:59:44 Player: Lunace Result: Destroyed by G-50 Soldier with Heavy Laser Performance ------------- Evolutions (4) 2000 Regions Visited (9) 1800 Robots Destroyed (109) 545 Value Destroyed (3671) 3671 Prototype IDs (25) 500 Alien Tech Used (0) 0 Bonus (586) 586 TOTAL SCORE: 9102 Bonus ------- High Alert Combat Kills 286 Aligned with FarCom 300 Cogmind --------- Core Integrity 0/850 Matter 112/300 Energy 99/100 System Corruption 18% Temperature Cool (27) Movement Core (50) Location -6/Extension Parts ------- > --- POWER (1) -------- (None) > --- PROPULSION (6) --- Light Treads > --- UTILITY (6) ------ Visual Processing Unit Terrain Scan Processor Focal Shield > --- WEAPON (2) ------- (None) > --- INVENTORY (5) ---- Advanced Heat Sink Faulty Experimental Sensor Array Mace Power Sword Peak State ------------ > --- POWER ------------ Light Angular Momentum Engine > --- PROPULSION ------- Armored Treads Advanced Treads Advanced Treads Advanced Treads Armored Huge Wheel > --- UTILITY ---------- Lightpack 2.0 Improved Terrain Scanner Terrain Scan Processor Medium Armor Plating > --- WEAPON ----------- Gauss Cannon Gauss Cannon > --- INVENTORY -------- Light Angular Momentum Engine Armored Treads Advanced Treads Armored Huge Wheel Armored Huge Wheel Armored Huge Wheel Improved Heat Sink Improved Heat Sink Advanced Heat Sink High-capacity Battery High-capacity Battery High-capacity Battery Large Matter Pod Large Matter Pod High-capacity Matter Pod High-capacity Matter Pod High-capacity Matter Pod Visual Processing Unit Experimental Sensor Array Transport Network Coupler Hardened Light Armor Plating Hardened Medium Armor Plating Improved Light Armor Plating Lightning Gun Heavy Assault Rifle Heavy Assault Rifle Heavy Assault Rifle Flak Gun Flak Gun Gauss Cannon Grenade Launcher Mini Grenade Launcher Mini Grenade Launcher Missile Launcher Remote Datajack Mace [Rating: 81] Favorites ----------- Power Light Angular Momentum Engine Engine Light Angular Momentum Engine Power Core Light Nuclear Core Propulsion Advanced Treads Treads Advanced Treads Leg Flexi-carbon Leg Wheel Armored Huge Wheel Flight Unit Xenon Bombardment Thruster Utility Lightpack 2.0 Device Structural Scanner Storage Lightpack 2.0 Processor Terrain Scan Processor Hackware Hacking Suite Protection Hardened Medium Armor Plating Weapon Heavy Assault Rifle Energy Gun Lightning Gun Ballistic Gun Heavy Assault Rifle Ballistic Cannon Gauss Cannon Launcher Grenade Launcher Special Weapon Remote Datajack Impact Weapon Mace Slashing Weapon Power Sword Build | -11 -10 -10 -10 -9 -8 -8 -8 -6 -6 ------- Run | Yrd Mat Min Exi Min Mat Sto Rec Fac Ext Slots Evolved 8 | . . . . . 4 . . 4 . Power . | . . . . . . . . . . Propulsion 4 | . . . . . 2 . . 2 . Utility 4 | . . . . . 2 . . 2 . Weapon . | . . . . . . . . . . Parts Attached 152 | 6 5 3 . . 24 15 4 63 32 Power 13 | 1 . 1 . . 2 2 . 3 4 Engine 8 | 1 . . . . 1 2 . 2 2 Core 5 | . . 1 . . 1 . . 1 2 Reactor . | . . . . . . . . . . Propulsion 35 | 2 . . . . 5 4 1 15 8 Treads 23 | 2 . . . . 5 4 1 10 1 Leg 2 | . . . . . . . . . 2 Wheel 9 | . . . . . . . . 5 4 Hover . | . . . . . . . . . . Flight 1 | . . . . . . . . . 1 Utility 48 | 1 2 . . . 10 2 2 21 10 Device 17 | . 1 . . . 5 . . 8 3 Storage 5 | 1 1 . . . 2 . . 1 . Processor 4 | . . . . . . . . 2 2 Hackware 1 | . . . . . . . . . 1 Protection 21 | . . . . . 3 2 2 10 4 Artifact . | . . . . . . . . . . Weapon 56 | 2 3 2 . . 7 7 1 24 10 Energy Gun 10 | . . . . . 4 4 . 1 1 Energy Cannon . | . . . . . . . . . . Ballistic Gun 19 | 2 2 1 . . 2 1 1 10 . Ballistic Cannon 10 | . . . . . . . . 7 3 Launcher 10 | . 1 1 . . . 2 . 3 3 Special Weapon 1 | . . . . . 1 . . . . Impact Weapon 4 | . . . . . . . . 2 2 Slashing Weapon 2 | . . . . . . . . 1 1 Piercing Weapon . | . . . . . . . . . . Special Melee Weapon . | . . . . . . . . . . Unidentified Prototypes 2 | . . . . . 1 1 . . . Parts Lost 65 | . . . . . 5 5 . 21 34 Power 7 | . . . . . 1 . . 2 4 Propulsion 20 | . . . . . 1 1 . 10 8 Utility 20 | . . . . . 1 2 . 6 11 Weapon 18 | . . . . . 2 2 . 3 11 Highest Loss Streak 32 | . . . . . 3 4 . 7 32 To Critical Strikes 1 | . . . . . . . . 1 . Average Slot Usage (%) 79 | . 91 100 100 100 80 80 81 67 71 Engine 4 | . 14 8 . . 5 3 9 2 2 Core 3 | . . 5 14 14 3 5 . . 3 Treads 25 | . 28 28 28 28 35 36 36 18 5 Wheel 2 | . . . . . . . . 4 9 Device 6 | . 6 14 14 14 7 . . 5 6 Storage 8 | . 14 14 14 14 9 9 9 6 5 Processor 1 | . . . . . . . . 5 1 Protection 4 | . . . . . 1 9 9 6 10 Energy Gun 3 | . . . . . 8 15 . . . Ballistic Gun 8 | . 19 18 14 14 6 1 12 7 . Ballistic Cannon 1 | . . . . . . . . 4 1 Launcher 3 | . 8 9 14 14 2 1 5 . 2 Naked Turns . | . . . . . . . . . . Heaviest Build 37 | 12 30 32 32 32 28 27 28 37 26 Greatest Support 128 | 40 40 40 40 40 88 88 86 128 44 Greatest Overweight (x) 3 | . . . . . . . . 1 3 Average Overweight (x) . | . . . . . . . . . . Largest Inventory Capacity 40 | 8 15 15 15 15 40 40 40 40 40 Average Capacity 33 | 7 14 15 15 15 39 40 40 40 36 Most Carried 40 | 2 8 14 15 15 34 36 39 40 38 Average Carried 26 | 1 5 9 14 15 26 33 35 32 26 Final Capacity 40 | 8 15 15 15 15 40 40 40 40 5 Final Carried 39 | 2 8 14 15 15 31 32 39 31 4 Class Distribution -------------------- 59% | Hauler-Mutant 22% | Mutant 15% | Hauler-Skirmisher Dominant Class ---------------- Mutant | -10/Materials Mutant | -10/Mines Mutant | -10/Exiles Mutant | -9/Mines Hauler-Mutant | -8/Materials Hauler-Mutant | -8/Storage Hauler-Mutant | -8/Recycling Hauler-Skirmisher | -6/Factory Hauler-Mutant | -6/Extension Resources | -11 -10 -10 -10 -9 -8 -8 -8 -6 -6 ----------- Run | Yrd Mat Min Exi Min Mat Sto Rec Fac Ext Matter Collected 4238 | 187 37 985 . . 793 126 80 1351 679 Remotely 245 | . . . . . . . . . 245 Salvage Created 3850 | . 161 129 . . 1032 596 . 1231 701 Parts 221 | . 26 14 . . 62 35 . 46 38 Haulers Intercepted . | . . . . . . . . . . Recyclers Shooed 3 | . . . . . 1 . . 2 . Parts Field Recycled . | . . . . . . . . . . Retrieved Matter . | . . . . . . . . . . Parts Self-Destructed . | . . . . . . . . . . Prevented . | . . . . . . . . . . Kills | -11 -10 -10 -10 -9 -8 -8 -8 -6 -6 ------- Run | Yrd Mat Min Exi Min Mat Sto Rec Fac Ext Combat Hostiles Destroyed 74 | . 9 7 . . 17 9 . 25 7 Melee 1 | . . . . . . . . . 1 Guns 34 | . 1 2 . . 15 6 . 9 1 Cannons 6 | . . . . . . . . 5 1 AOE 30 | . 8 5 . . 1 1 . 11 4 Classes Destroyed 15 | . 3 . . . 4 3 . 4 1 Worker 10 | . . . . . 1 . . 6 3 Builder 6 | . . . . . 1 1 . 1 3 Tunneler 3 | . . . . . . . . 2 1 Recycler 7 | . . . . . 1 . . 2 4 Operator 1 | . . . . . . 1 . . . Watcher 8 | . 2 . . . 3 1 . 2 . Swarmer 17 | . 6 5 . . 3 . . . 3 Grunt 32 | . 3 2 . . 13 1 . 13 . Brawler 3 | . . . . . . . . 3 . Duelist 2 | . . . . . 1 . . 1 . Protector 2 | . . . . . . . . 2 . Sentry 11 | . . . . . . 6 . 3 2 Hunter 4 | . . . . . . 2 . 1 1 Programmer 2 | . . . . . . . . 2 . Behemoth 1 | . . . . . . . . . 1 Best Kill Streak 9 | . 5 3 . . 5 4 . 8 9 Combat Bots Only 5 | . 3 3 . . 5 3 . 5 3 Max Kills in Single Turn 7 | . 3 3 . . 1 1 . 7 3 Gunslinging . | . . . . . . . . . . Exploded 3 | . 3 3 . . 1 1 . 3 3 Melee 1 | . . . . . . . . . 1 Uniques/NPCs Destroyed . | . . . . . . . . . . Combat | -11 -10 -10 -10 -9 -8 -8 -8 -6 -6 -------- Run | Yrd Mat Min Exi Min Mat Sto Rec Fac Ext Hostile Shots Fired 575 | . 15 15 . . 83 58 . 267 137 Missed 165 | . 7 6 . . 14 12 . 80 46 Damage Taken 7673 | . 126 93 . . 1150 686 . 3671 1947 Core 1195 | . 44 . . . 258 40 . 311 542 Absorbed by Shields . | . . . . . . . . . . Redirected to Shielding 84 | . . . . . . . . . 84 Ignored by Resistances 98 | . . . . . . . . 6 92 Regen/Repaired (Parts) 40 | . . . . . . 40 . . . Core Remaining (%) 75 | 100 . . . 82 . . 45 . . Volleys Fired 277 | 3 10 8 . . 66 33 . 121 36 Largest 2 | 2 2 2 . . 2 2 . 2 2 Hottest 110 | 40 53 46 . . 110 110 . 103 103 Shots Fired 452 | 6 14 13 . . 124 61 . 185 49 Gun 299 | 6 7 10 . . 120 58 . 91 7 Cannon 94 | . . . . . . . . 74 20 Launcher 56 | . 7 3 . . 1 3 . 20 22 Special 3 | . . . . . 3 . . . . Kinetic 258 | 6 7 10 . . 51 2 . 162 20 Thermal . | . . . . . . . . . . Explosive 56 | . 7 3 . . 1 3 . 20 22 Electromagnetic 135 | . . . . . 69 56 . 3 7 Robot Hit Streak 19 | 4 4 9 . . 11 11 . 19 10 Robot Miss Streak 7 | 1 1 1 . . 3 2 . 7 2 Penetration Max 1 | . . . . . . . . . 1 Secondary Targets 2 | . . . . . 1 . . 1 . Max Gunslinging Chain 1 | . . . . . 1 . . 1 . Shots Hit Robots 314 | 5 9 9 . . 80 40 . 134 37 Core Hits 297 | 1 14 13 . . 39 19 . 175 36 Critical Kills . | . . . . . . . . . . Critical Parts Destroyed 1 | . 1 . . . . . . . . Critical Strikes 11 | . 1 . . . . 2 . 7 1 Destroy 2 | . 1 . . . . . . 1 . Blast 7 | . . . . . . . . 6 1 Corrupt 2 | . . . . . . 2 . . . Melee Attacks 15 | . . . . . . . . 5 10 Impact 8 | . . . . . . . . 5 3 Slashing 7 | . . . . . . . . . 7 Piercing . | . . . . . . . . . . Sneak Attacks 2 | . . . . . . . . . 2 Combat Hostiles 1 | . . . . . . . . . 1 Follow-up Attacks . | . . . . . . . . . . Damage Inflicted 11129 | 59 463 314 . . 1546 880 . 5542 2325 Guns 4283 | 59 84 126 . . 1440 774 . 1695 105 Cannons 1547 | . . . . . . . . 1065 482 Explosions 5119 | . 379 188 . . 106 106 . 2782 1558 Melee 180 | . . . . . . . . . 180 Ramming . | . . . . . . . . . . Kinetic 3916 | 59 84 126 . . 453 13 . 2699 482 Thermal 777 | . . . . . 33 106 . 638 . Explosive 4342 | . 379 188 . . 73 . . 2144 1558 Electromagnetic 1914 | . . . . . 987 761 . 61 105 Impact 88 | . . . . . . . . . 88 Slashing 92 | . . . . . . . . . 92 Piercing . | . . . . . . . . . . Highest Corruption 18 | . . . . . . . . 18 18 Average Corruption 13 | . . . . . . . . 10 18 Corruption Purged . | . . . . . . . . . . Corruption Blocked . | . . . . . . . . . . Effects 75 | . . . . . . . . 50 25 Message Errors 19 | . . . . . . . . 9 10 Matter Fused 17 | . . . . . . . . 10 7 Heat Flow Errors 7 | . . . . . . . . 5 2 Energy Discharges 8 | . . . . . . . . 5 3 Parts Rejected 4 | . . . . . . . . 4 . Data Loss (minor) 4 | . . . . . . . . 4 . Data Loss (major) 3 | . . . . . . . . 3 . Misfires 3 | . . . . . . . . 1 2 Misdirections 1 | . . . . . . . . . 1 Weapon Failures 9 | . . . . . . . . 9 . Overload Shots . | . . . . . . . . . . Overflow Damage 411 | . 16 . . . . . . 267 128 Projectiles 68 | . . . . . . . . 66 2 Explosions 228 | . 16 . . . . . . 201 11 Melee 115 | . . . . . . . . . 115 Knockbacks 4 | . . . . . . . . 2 2 Impact 1 | . . . . . . . . . 1 Kinetic 3 | . . . . . . . . 2 1 Secondary . | . . . . . . . . . . Self-Inflicted Damage 934 | . 51 . . . 35 14 . 781 53 Shots 28 | . 3 . . . 1 1 . 19 4 Rammed . | . . . . . . . . . . Targets Rammed . | . . . . . . . . . . Kicked . | . . . . . . . . . . Crushed . | . . . . . . . . . . Highest Temperature 276 | . 3 4 . . 276 252 . 208 165 Average Temperature 72 | . 3 1 . . 84 97 . 28 55 Received Heat Transfer 1741 | . 18 27 . . 522 171 . 616 387 Effects 2 | . . . . . . 2 . . . Interference 2 | . . . . . . 2 . . . Siege Activations . | . . . . . . . . . . Robots Corrupted 3 | . . . . . 1 2 . . . Combat Hostiles 3 | . . . . . 1 2 . . . Parts Fried 15 | . . . . . 2 10 . . 3 Impact Corruptions 2 | . . . . . . . . . 2 Robots Melted . | . . . . . . . . . . Combat Hostiles . | . . . . . . . . . . Parts Melted . | . . . . . . . . . . Heat Transferred 500 | . . . . . 50 50 . 400 . Parts Sabotaged . | . . . . . . . . . . Parts Stolen . | . . . . . . . . . . Parts Stripped . | . . . . . . . . . . Power Chain Reactions 4 | . . . . . 1 2 . 1 . Alert | -11 -10 -10 -10 -9 -8 -8 -8 -6 -6 ------- Run | Yrd Mat Min Exi Min Mat Sto Rec Fac Ext Peak Influence 889 | . 392 278 . . 306 379 247 889 589 Initial 410 | . . 152 . . . 87 115 200 410 Average 296 | . 152 163 . . 113 218 135 537 458 Maximum Alert Level 3 | . 1 1 . . 1 1 1 3 2 Low Security (%) 44 | 100 68 76 . 100 77 42 70 10 . Level 1 28 | . 31 23 . . 22 57 29 23 33 Level 2 18 | . . . . . . . . 36 66 Level 3 8 | . . . . . . . . 28 . Level 4 . | . . . . . . . . . . Level 5 . | . . . . . . . . . . High Security . | . . . . . . . . . . Max Security . | . . . . . . . . . . Squads Dispatched 25 | . 2 . . . 4 2 . 13 4 Investigation 14 | . 2 . . . 2 2 . 7 1 Extermination 3 | . . . . . . . . 3 . Reinforcement 6 | . . . . . 2 . . 1 3 Assault 2 | . . . . . . . . 2 . Garrison . | . . . . . . . . . . Intercept . | . . . . . . . . . . Searches Triggered . | . . . . . . . . . . Construction Impeded 3 | . . . . . . . . 1 2 Haulers Reinforced . | . . . . . . . . . . Active Scanning Responses . | . . . . . . . . . . Cargo Convoy Interrupts . | . . . . . . . . . . Stealth | -11 -10 -10 -10 -9 -8 -8 -8 -6 -6 --------- Run | Yrd Mat Min Exi Min Mat Sto Rec Fac Ext Distress Signals 4 | . . . . . 1 1 . . 2 Communications Jammed . | . . . . . . . . . . Distress Signals . | . . . . . . . . . . Times Spotted 106 | . 12 8 . . 23 10 . 36 17 Peak Tracking Total 6 | . 5 3 . . 6 4 . 6 6 Tactical Retreats 4 | . . 1 . . 1 . . 2 . Traps | -11 -10 -10 -10 -9 -8 -8 -8 -6 -6 ------- Run | Yrd Mat Min Exi Min Mat Sto Rec Fac Ext Traps Triggered 4 | . . . . . . 1 . 1 2 Indirectly . | . . . . . . . . . . Trap Hack Attempts . | . . . . . . . . . . Triggered . | . . . . . . . . . . Disarmed . | . . . . . . . . . . Reprogrammed . | . . . . . . . . . . Reused . | . . . . . . . . . . Traps Extracted . | . . . . . . . . . . Installed . | . . . . . . . . . . Triggered . | . . . . . . . . . . Machines | -11 -10 -10 -10 -9 -8 -8 -8 -6 -6 ---------- Run | Yrd Mat Min Exi Min Mat Sto Rec Fac Ext Machines Disabled 32 | . 1 . . . 1 3 . 21 6 Max in Single Turn 17 | . 1 . . . 1 1 . 17 1 Machines Repaired . | . . . . . . . . . . Machines Dismantled . | . . . . . . . . . . Machines Sabotaged . | . . . . . . . . . . Overloaded Fab Kills 2 | . . . . . . . . 2 . Hacking | -11 -10 -10 -10 -9 -8 -8 -8 -6 -6 --------- Run | Yrd Mat Min Exi Min Mat Sto Rec Fac Ext Machines Accessed 32 | . 3 . 1 . 4 5 6 8 5 Terminals 14 | . 1 . . . 1 3 2 2 5 Fabricators 2 | . . . . . . . . 2 . Repair Stations 2 | . . . . . 1 1 . . . Recycling Units 10 | . 2 . . . . 1 4 3 . Scanalyzers 3 | . . . . . 2 . . 1 . Garrison Access . | . . . . . . . . . . Total Hacks 68 | . 9 . 1 . 9 14 11 14 10 Successful 33 | . 8 . 1 . 4 5 6 8 1 Failed 35 | . 1 . . . 5 9 5 6 9 Catastrophic 7 | . . . . . . 2 . 1 4 Database Lockouts . | . . . . . . . . . . Manual 51 | . 6 . 1 . 5 10 11 13 5 Terminals 33 | . 2 . . . 3 9 6 3 10 Fabricators 5 | . . . . . . . . 5 . Repair Stations 6 | . . . . . 4 2 . . . Recycling Units 20 | . 7 . . . . 3 5 5 . Scanalyzers 3 | . . . . . 2 . . 1 . Garrison Access . | . . . . . . . . . . Terminal Hacks 6 | . 1 . 1 . . 1 1 1 1 Terminal Index 2 | . . . . . . 1 . 1 . Recycling Unit Index 1 | . 1 . . . . . . . . Unreport Threat 1 | . . . . . . . 1 . . Zone Layout 1 | . . . . . . . . . 1 Derelict Proto ID Bank 1 | . . . 1 . . . . . . Fabricator Hacks 1 | . . . . . . . . 1 . Network Status 1 | . . . . . . . . 1 . Repair Station Hacks 3 | . . . . . 1 2 . . . Scan Component 2 | . . . . . 1 1 . . . Repair 1 | . . . . . . 1 . . . Recycling Unit Hacks 3 | . 3 . . . . . . . . Report Inventory 2 | . 2 . . . . . . . . Retrieve Components 1 | . 1 . . . . . . . . Scanalyzer . | . . . . . . . . . . Garrison Access Hacks . | . . . . . . . . . . Unauthorized Hacks 20 | . 4 . . . 3 2 5 6 . Terminals 1 | . . . . . 1 . . . . Operators 1 | . . . . . 1 . . . . Fabricators 2 | . . . . . . . . 2 . Fabnet 1 | . . . . . . . . 1 . Overload 1 | . . . . . . . . 1 . Repair Stations . | . . . . . . . . . . Recycling Units 14 | . 4 . . . . 2 5 3 . Monitor 2 | . 1 . . . . 1 . . . Recyclers 3 | . 1 . . . . 1 1 . . Mask 1 | . . . . . . . . 1 . Tunnel 8 | . 2 . . . . . 4 2 . Scanalyzers 3 | . . . . . 2 . . 1 . Extract 3 | . . . . . 2 . . 1 . Garrison Access . | . . . . . . . . . . Data Cores Recovered 1 | . . . . . . 1 . . . Used . | . . . . . . . . . . Hacking Detections 20 | . 1 . . . 2 6 2 4 5 Full Trace Events 5 | . . . . . . 2 . 2 1 Feedback Events 1 | . . . . . . . . 1 . Corruption 1 | . . . . . . . . 1 . Feedback Blocked . | . . . . . . . . . . Robot Schematics Acquired . | . . . . . . . . . . Robots Built . | . . . . . . . . . . Authchips . | . . . . . . . . . . Time . | . . . . . . . . . . Total Robot Build Rating . | . . . . . . . . . . Part Schematics Acquired 14 | . . . . . 12 . . 2 . Parts Built . | . . . . . . . . . . Authchips . | . . . . . . . . . . Time . | . . . . . . . . . . Total Part Build Rating . | . . . . . . . . . . Parts Repaired 1 | . . . . . . 1 . . . Time 26 | . . . . . . 26 . . . Parts Recycled . | . . . . . . . . . . Recycled Matter . | . . . . . . . . . . Retrieved Matter . | . . . . . . . . . . Retrieved Components 3 | . 3 . . . . . . . . Parts Scanalyzed . | . . . . . . . . . . Part Schematics Acquired . | . . . . . . . . . . Parts Damaged . | . . . . . . . . . . Bothacking | -11 -10 -10 -10 -9 -8 -8 -8 -6 -6 ------------ Run | Yrd Mat Min Exi Min Mat Sto Rec Fac Ext Used RIF Installer . | . . . . . . . . . . Robots Hacked . | . . . . . . . . . . Non-combat . | . . . . . . . . . . Combat . | . . . . . . . . . . Robot Hacks Applied . | . . . . . . . . . . Relay Couplers Released . | . . . . . . . . . . Fabnet Peak Effective % . | . . . . . . . . . . Robots Rewired 1 | . . . . . 1 . . . . Allies Hacked . | . . . . . . . . . . Hacks Repelled . | . . . . . . . . . . Allies | -11 -10 -10 -10 -9 -8 -8 -8 -6 -6 -------- Run | Yrd Mat Min Exi Min Mat Sto Rec Fac Ext Total Allies 3 | . . 2 . . 1 . . . . Largest Group 2 | . . 2 2 . 1 . . . . Highest-Rated Group 41 | . . 41 41 . 16 . . . . Highest-Rated Ally 31 | . . 31 31 . 16 . . . . Total Orders . | . . . . . . . . . . Ally Attacks 4 | . . . . . 4 . . . . Total Damage 66 | . . . . . 66 . . . . Kills . | . . . . . . . . . . Allies Corrupted . | . . . . . . . . . . Allies Melted . | . . . . . . . . . . Intel | -11 -10 -10 -10 -9 -8 -8 -8 -6 -6 ------- Run | Yrd Mat Min Exi Min Mat Sto Rec Fac Ext Robot Analysis Total . | . . . . . . . . . . Derelict Logs Recovered 2 | . . 2 . . . . . . . Drone Launches . | . . . . . . . . . . Drone Recoveries . | . . . . . . . . . . Exploration | -11 -10 -10 -10 -9 -8 -8 -8 -6 -6 ------------- Run | Yrd Mat Min Exi Min Mat Sto Rec Fac Ext Turns Passed 6003 | 97 251 572 375 50 1244 610 485 1691 628 Spaces Moved 2959 | 49 127 324 231 32 479 229 314 863 311 Core 22 | 2 . . . . . . . . 20 Treads 1924 | 47 127 324 231 32 479 229 314 141 . Legs 47 | . . . . . . . . . 47 Wheels 966 | . . . . . . . . 722 244 Hover . | . . . . . . . . . . Flight . | . . . . . . . . . . Fastest Speed 50 | 50 160 160 160 160 145 145 151 100 50 Average Speed 135 | 155 160 160 160 160 145 149 151 112 100 Slowest Speed 240 | 160 160 160 160 160 160 153 157 240 200 Overloaded Moves . | . . . . . . . . . . Propulsion Burnouts . | . . . . . . . . . . Robots Hopped . | . . . . . . . . . . Cave-ins Triggered . | . . . . . . . . . . Exploration Rate (%) 41 | 6 30 87 60 18 34 34 81 25 43 Regions Visited 9 Branch Regions 6 Pre-discovered Areas 9 | . 2 1 . . . . 4 2 . Known Exits Taken 2 | . . 1 . . . . . 1 . Unknown Exits Taken 7 | 1 1 . 1 1 1 1 1 . . Scrap Searched 2 | . . 2 . . . . . . . Spaces Dug 7 | . . . . . . . . 6 1 Terrain Destroyed 337 | . 58 20 . . 13 37 . 157 52 Melee 5 | . . . . . . . . 4 1 Projectile 19 | . . . . . . . . 14 5 AOE 313 | . 58 20 . . 13 37 . 139 46 Terrain Rammed . | . . . . . . . . . . Walls Destroyed . | . . . . . . . . . . Machines Disabled . | . . . . . . . . . . Actions | -11 -10 -10 -10 -9 -8 -8 -8 -6 -6 --------- Run | Yrd Mat Min Exi Min Mat Sto Rec Fac Ext Total 4437 | 61 159 364 239 31 898 431 321 1373 560 Wait 876 | 2 13 23 . . 296 143 . 262 137 Move 2950 | 48 126 323 230 31 478 228 313 862 311 Hop . | . . . . . . . . . . Pick Up 107 | 2 4 6 4 . 26 11 4 34 16 Fast Attach 36 | 6 2 . . . 6 2 . 10 10 Attach 52 | . . . . . 7 6 . 26 13 Detach 13 | . . . . . 2 . . 8 3 Swap 64 | . 3 3 . . 11 7 4 27 9 Drop 45 | . 1 1 5 . 6 1 . 18 13 Fire 277 | 3 10 8 . . 66 33 . 121 36 Melee 15 | . . . . . . . . 5 10 Ram . | . . . . . . . . . . Kick . | . . . . . . . . . . Crush . | . . . . . . . . . . Escape Stasis 2 | . . . . . . . . . 2 Rewire . | . . . . . . . . . . Trap . | . . . . . . . . . . Miscellaneous . | . . . . . . . . . . Route ------- -11/Scrapyard -10/Materials -10/Mines (discovered 2 exits: [*Mat] / *Exi) -10/Exiles -9/Mines -8/Materials -8/Storage -8/Recycling -6/Factory -6/Extension History --------- Turn | Location | Event 6 | -11/Scrapyard | Discovered new exit (range 15) 98 | -11/Scrapyard | Entered Materials 304 | -10/Materials | Discovered new exit (range 15) 315 | -10/Materials | Build established: Mutant 349 | -10/Materials | Entered Mines 355 | -10/Mines | Met a Derelict bent on vengeance 426 | -10/Mines | Learned location of Recycling (-8) 469 | -10/Mines | Discovered new exit (range 14) 584 | -10/Mines | Identified exit to Exiles 850 | -10/Mines | Found a damaged Exp. Sensor Array with a note attached 853 | -10/Mines | Found Prototype Device 915 | -10/Mines | Deemed a non-threat by the Exiles lab entrance 921 | -10/Mines | Entered Exiles 921 | -10/Exiles | Accompanied by 2 allies 951 | -10/Exiles | Led the pair of lost Derelicts to a safe place 958 | -10/Exiles | Met 8R-AWN 989 | -10/Exiles | Met EX-HEX 1032 | -10/Exiles | Met EX-BIN 1054 | -10/Exiles | Aligned with FarCom system 1056 | -10/Exiles | Given EX-Vault access code 1093 | -10/Exiles | Opened EX-Vault 1107 | -10/Exiles | Found Lightpack 2.0 1141 | -10/Exiles | Warned to stay clear of 0b10 Research branches 1186 | -10/Exiles | Met EX-DEC 1280 | -10/Exiles | Discovered new exit (range 10) 1296 | -10/Exiles | Left Exiles lab with Lightpack 2.0 1296 | -10/Exiles | Entered Mines 1317 | -9/Mines | Discovered new exit (range 13) 1346 | -9/Mines | Entered Materials 1346 | -8/Materials | Evolved 4 slots: Propulsion x2, Utility x2 1414 | -8/Materials | Identified Exp. Sensor Array 1646 | -8/Materials | Build established: Hauler-Mutant 2515 | -8/Materials | Lost 3 parts (1p1n1w) 2564 | -8/Materials | Discovered new exit (range 11) 2590 | -8/Materials | Entered Storage 2630 | -8/Storage | Repaired Grenade Launcher 2765 | -8/Storage | Core integrity fell below 50% 3155 | -8/Storage | Lost 4 parts (1n1u2w) 3194 | -8/Storage | Used back door to open Recycling access 3194 | -8/Storage | Discovered new exit (range 5) 3200 | -8/Storage | Entered Recycling 3623 | -8/Recycling | Discovered new exit (range 16) 3685 | -8/Recycling | Entered Factory 3685 | -6/Factory | Evolved 4 slots: Propulsion x2, Utility x2 4027 | -6/Factory | Build established: Hauler-Skirmisher 4385 | -6/Factory | First assault squad dispatched 4449 | -6/Factory | Lost 3 parts (2n1u) 4522 | -6/Factory | System corruption reached 10% 4560 | -6/Factory | Lost 7 parts (2p2n1u2w) 4876 | -6/Factory | Lost 4 parts (2n1u1w) 5086 | -6/Factory | Build established: Hauler-Mutant 5362 | -6/Factory | Discovered new exit (range 14) 5376 | -6/Factory | Identified exit to Extension 5376 | -6/Factory | Entered Extension 5901 | -6/Extension | Spotted B-75 Beast 5925 | -6/Extension | Core integrity fell below 50% 5948 | -6/Extension | Destroyed B-75 Beast 5950 | -6/Extension | Spotted B-75 Beast 5976 | -6/Extension | Disrupted transfer network 5986 | -6/Extension | Core integrity fell below 20% 6004 | -6/Extension | Destroyed by G-50 Soldier with Heavy Laser Last Messages --------------- 05965_ Knocked back. 05965_ Grenade Launcher destroyed. 05966_ U-05 Engineer destroyed. 05972_ The unstable cave ceiling collapses. 05976_ ALERT: Persistent threat to transfer network, dispatching additional forces. 05976_ K-01 Serf destroyed. 05977_ 0 A,F1&RKPMPAA4DTC&N#Y0SSAX%6P7F LLXSFUD 05982_ Flexi-carbon Leg destroyed. 05982_ Imp. Deuterium Engine destroyed. 05988_ Hvy. Missile Launcher destroyed. 05988_ Lrn. Tractor Beam destroyed. 05990_ Acquired Lgt. Treads. 05994_ System corrupted: Matter fused (-6). 05994_ Arm. Huge Wheel destroyed. 05999_ Knocked back. 05999_ Door Terminal disabled. 05999_ Acquired 5 matter. 06001_ The unstable cave ceiling collapses. 06004_ Critical hit (Burn: +37). Map ----- +----------------------------------------------------+ | #?# #?????# !Y"#???????????????????????????????? | | #?# #?????# " "#???????????????????????????????? | | ###?# ####### ####???????????????????????????????? | | ????# #??????????????????????????????????? | | ????# #######!#??????????????????????????????????? | | ????# T#????#=#??????????????????????????????????? | | ????#"##????#!##?????????????????????????????????? | | ????????????#*##?????????????????????????????????? | | ???????????## ##???????? ????????????????????????? | | ?????????#?##!#????????? ????????????????????????? | | ????????? ### #????????? #???????????????????????? | | ?????????# #" ####?###?# #???????????????????????? | | ??????????# !!# ;### ### #???????????????????????? | | ??????????##[!;# ## ###?????????????????????? | | ?????????## [ " ""#?????????????????????? | | ????????##" % ! " " #?????????????????????? | | ????????# g = #?????????????????????? | | ????????# g #?????????????????????? | | ######### g ############??????????? | | ???????????? | | w ?????????????? | | ???????????????? | | BB ???????????????? | | BB g???g???????????? | | ######### # ##???????????????????? | | ????????# # @ #????????????????????? | | ???????? # #????????????????????? | | ???????#### ##????????????????????? | | ??????????# #?????????????????????? | | ??????????###### #"""#######?????????????????????? | | ???????????????###???????????????????????????????? | | ?????????????????????????????????????????????????? | | | | | | | | | | | | | | | | | | | | | | | | | | | | | | | | | | | | | +----------------------------------------------------+ Best States ------------- Heat Dissipation 45 Energy Generation 18 Energy Capacity 290 Matter Stores 450 Matter Capacity 450 Sight Range 18 Terrain Scan Range 16 Terrain Scan Density 85 Armor Coverage 450 Resistance: KI 20 Propulsion Shielding 33 Weapon Shielding 33 Evasion (%) 55 Recoil Reduction 6 Offensive Hacking 10 Item Schematics ----------------- EM Pulse Gun | -8/Materials | Extracted Com. Matter Pod | -8/Materials | Extracted Seismic Detector | -8/Materials | Extracted Core Shielding | -8/Materials | Extracted Sml. Laser | -8/Materials | Extracted Structural Scanner | -8/Materials | Extracted Flail | -8/Materials | Extracted Cooling System | -8/Materials | Extracted Hvy. Hammer | -8/Materials | Extracted Lgt. Armor Plating | -8/Materials | Extracted Imp. Hover Unit | -8/Materials | Extracted Imp. Terrain Scanner | -8/Materials | Extracted Lightning Gun | -6/Factory | Extracted Fission Core | -6/Factory | Extracted Robot Schematics ------------------ None Fabricated ------------ Nothing Alien Tech Used ----------------- None Achievements -------------- None Challenges ------------ None Game ------ Seed SigixInsulationDatajack Manual? 0 Play Time 01:06:33 Cumulative 76.5 hours Start 2024.04.15 @ 19:50:43 End 2024.04.15 @ 20:59:44 Sessions 1 Manual Loads 0 Difficulty Rogue Special Mode None Game No. 90 Rogue 85 Adventurer 5 Explorer 0 Win Type - Total 3 Types 2/0/0/1/0/0/0/0/0 Lore% 37 Gallery% 55 Achievement% 44 Wizard Run 0 Options --------- Layout 1 ASCII 0 Keyboard 0 Movement Mouse Keybinds 0 Fullscreen 1 Font 24/Terminus Map View 50x35 Zoom Use 0% Tactical HUD 1 Map Filters NONE Filters NONE Steam 1 RUN: ddbbd42a-1a1a-4f6a-b4df-6f1d5d2aac75